[Event "Tirnavia Reti Memorial-GM 2022"]
[Site "Trnava"]
[Date "2022.08.14"]
[Round "5.2"]
[White "Velicka, Petr"]
[Black "Sahidi, Samir"]
[Result "1/2-1/2"]
[ECO "B31"]
[WhiteElo "2384"]
[BlackElo "2462"]
[Annotator "TA"]
[PlyCount "150"]
[EventDate "2022.08.10"]
[EventType "tourn"]
[EventCountry "SVK"]
[SourceTitle "playchess.com"]
[Source "ChessBase"]
[SourceQuality "1"]
[TimeControl "40/5400+30:1800+30"]

{[%evp 11,150,4,21,0,20,18,18,22,25,29,31,20,27,0,0,0,11,0,0,0,0,0,11,12,20,0,0,0,0,0,0,0,0,0,0,0,0,0,0,0,0,0,0,0,0,7,7,7,7,7,29,29,29,21,29,3,29,0,29,29,29,29,29,0,0,0,0,0,0,0,0,0,0,0,0,0,29,29,29,29,54,54,54,54,54,54,54,0,54,54,54,53,53,53,48,41,54,54,54,54,54,54,54,54,54,0,54,54,54,54,64,58,60,58,58,58,66,66,58,58,66,66,58,66,66,66,83,40,124,0,89,54,54,54,54,54,54,0,0,0,0]} 1. e4 {[%emt 0:00:05]} c5 {[%emt 0:00:15]} 2. Nf3 {[%emt 0:00:08]} Nc6 {[%emt 0:00:24]} 3. Bb5 {[%emt 0:00:07]} g6 {[%emt 0:00:12]} 4. O-O {[%emt 0:00:10]} Bg7 {[%emt 0:00:11]} 5. Re1 {[%emt 0:00:07]} e5 {[%emt 0:00:49]} 6. b4 {[%emt 0:00:07]} Nxb4 {[%emt 0:03:37]} 7. Bb2 {[%emt 0:01:39] B31: Sicilian: 2...Nc6 3 Bb5 g6.} a6 {[%emt 0:05:39]} 8. a3 $1 {[%emt 0:00:24]} Nc6 {[%emt 0:05:32]} 9. Bxc6 {[%emt 0:02:16]} dxc6 {[%emt 0:00:09]} 10. Nxe5 {[%emt 0:01:42]} Nf6 {[%emt 0:00:51][%cal Of6g4] [#]} 11. Nf3 $146 {[%emt 0:02:36]} ({Predecessor:} 11. Qc1 O-O 12. d3 Re8 13. a4 Qc7 14. Nf3 Bg4 15. Nbd2 b6 16. Ra3 Re7 17. Qa1 {½-½ (40) Machycek,L (2401)-Kosic,B (2407) ICCF email 2015}) 11... c4 {[%emt 0:07:41]} 12. d4 {[%emt 0:04:16][%cal Bd2d4,Bd4d5,Bd5e6,Be6e7][%mdl 32]} (12. d3 {feels hotter.} O-O 13. h3 Re8 14. a4) 12... O-O {[%emt 0:03:59]} 13. Ne5 {[%emt 0:02:58]} Be6 {[%emt 0:02:50][%cal Oc6c5]} 14. Nd2 {[%emt 0:00:19]} Nh5 $1 {[%emt 0:00:35]} 15. Ndxc4 {[%emt 0:11:33]} f6 {[%emt 0:02:22]} 16. d5 $1 {[%emt 0:00:25]} fxe5 {[%emt 0:04:54]} 17. dxe6 {[%emt 0:03:22]} Qf6 {[%emt 0:00:05]} 18. Bxe5 {[%emt 0:03:50] Active counter play!} Qxf2+ {[%emt 0:00:16]} 19. Kh1 {[%emt 0:00:16]} Nf4 {[%emt 0:06:53]} 20. Bxf4 {[%emt 0:16:47]} Qxf4 {[%emt 0:01:13]} 21. e7 {[%emt 0:00:34]} Rfe8 {[%emt 0:01:03]} 22. Nb6 $1 {[%emt 0:00:36]} Rab8 {[%emt 0:02:33]} 23. Nd7 {[%emt 0:06:57] [#] Strongly threatening e5.} Rbc8 {[%emt 0:00:48]} 24. e5 {[%emt 0:03:23] Black must now prevent Rf1.} Rxe7 {[%emt 0:01:08]} 25. Rb1 {[%emt 0:08:03]} b5 {[%emt 0:02:56]} 26. Qd6 {[%emt 0:01:42]} Rce8 {[%emt 0:11:49]} 27. Qxc6 {[%emt 0:01:09]} Bxe5 {[%emt 0:01:40]} 28. Nxe5 {[%emt 0:05:55]} (28. Rxe5 {is interesting.} Rxe5 29. Nxe5 Qxe5 30. h3) 28... Rxe5 {[%emt 0:00:13]} 29. Qxe8+ {[%emt 0:01:20]} Rxe8 {[%emt 0:00:08]} 30. Rxe8+ $11 {[%emt 0:00:04][%mdl 4096] Endgame KQ-KRR} Kg7 {[%emt 0:00:25]} (30... Kf7 $5 {[%cal Rf7e8]} 31. Ra8 Qd6 $11) 31. Re7+ {[%emt 0:03:11]} Kh6 {[%emt 0:02:04]} 32. Ree1 {[%emt 0:06:20]} Kg5 {[%emt 0:09:37]} 33. Rec1 {[%emt 0:01:14]} Qc4 {[%emt 0:01:06]} 34. Ra1 {[%emt 0:06:44]} Kf4 {[%emt 0:02:54]} 35. c3 {[%emt 0:01:23]} Qa4 {[%emt 0:07:16]} 36. Re1 {[%emt 0:01:24]} h5 {[%emt 0:02:13]} 37. Re6 {[%emt 0:00:54]} (37. Reb1 $5 {[%cal Rb1b4]} a5 38. Rb2 $11) 37... Kg5 {[%emt 0:01:38]} 38. Rc6 {[%emt 0:01:53]} Kh6 {[%emt 0:03:52]} 39. Rd6 {[%emt 0:01:56]} a5 {[%emt 0:04:30]} 40. Rdd1 {[%emt 0:00:27]} Qb3 {[%emt 0:01:45]} 41. a4 {[%emt 0:03:35]} bxa4 {[%emt 0:00:23]} 42. Rd2 {[%emt 0:01:00]} Qxc3 {[%emt 0:01:50]} 43. Rda2 {[%emt 0:00:06]} Qe5 {[%emt 0:02:37]} 44. Rxa4 {[%emt 0:00:12]} Qd6 {[%emt 0:00:26]} 45. Rxa5 {[%emt 0:00:09]} Qf4 {[%emt 0:00:08]} 46. R5a4 {[%emt 0:00:41]} Qe5 {[%emt 0:00:13]} 47. h4 {[%emt 0:00:36]} Qf6 {[%emt 0:00:31]} 48. R1a2 {[%emt 0:00:28]} Qe5 {[%emt 0:00:15]} 49. Ra1 {[%emt 0:01:35]} Qf6 {[%emt 0:00:06]} 50. Re1 {[%emt 0:00:41] Prevents Qe5.} Qd6 {[%emt 0:00:15]} 51. Rf1 {[%emt 0:00:16]} Qe5 {[%emt 0:00:21]} 52. Raf4 {[%emt 0:00:16]} Qe7 {[%emt 0:00:15]} 53. R1f2 {[%emt 0:00:12]} Qd8 {[%emt 0:00:57]} 54. Kh2 {[%emt 0:00:18]} Qd6 {[%emt 0:00:16]} 55. g3 {[%emt 0:00:06]} Qe5 {[%emt 0:01:10]} 56. Rf7 {[%emt 0:00:34]} Qd4 {[%emt 0:00:31]} 57. Re2 {[%emt 0:00:24]} Qc4 {[%emt 0:03:20]} 58. Ree7 {[%emt 0:00:21]} (58. Rfe7 $14) 58... Qc2+ {[%emt 0:00:13]} (58... Qa2+ $1 $11 59. Kh3 Qe6+ 60. Kg2 Qa2+ 61. Rf2 (61. Kh3 Qe6+ 62. Kg2 Qa2+ 63. Rf2 Qd5+ 64. Kh2 Qb3 $16) 61... Qa3) 59. Kh3 $14 {[%emt 0:00:13][%csl Ge7][%cal Rf7h7] [#]} Qc8+ {[%emt 0:00:05]} 60. Rd7 {[%emt 0:00:09][%csl Gd7][%cal Rf7h7]} Qh8 {[%emt 0:00:22] Prevents Rh7+.} 61. Rc7 {[%emt 0:01:13]} Qg8 {[%emt 0:00:08]} 62. Kh2 {[%emt 0:05:50]} Qh8 {[%emt 0:00:12]} 63. Rb7 {[%emt 0:00:06]} Qg8 {[%emt 0:00:17]} 64. Ra7 {[%emt 0:01:10]} Qh8 {[%emt 0:00:08]} 65. Rfb7 {[%emt 0:00:06]} Qg8 {[%emt 0:00:23]} 66. Kg1 {[%emt 0:02:11]} Qh8 {[%emt 0:00:10]} 67. Rd7 {[%emt 0:00:19] Prevents Qd4+.} Qg8 {[%emt 0:00:12]} 68. Rf7 {[%emt 0:03:42]} Qh8 {[%emt 0:00:08]} 69. Rae7 {[%emt 0:00:20]} Qd4+ {[%emt 0:00:25]} ({Black should try} 69... Qa1+ $14 70. Kh2 Qa2+ 71. Kh3 Qe6+ 72. Kg2 Qa2+ 73. Rf2 (73. Kh3 Qe6+ 74. Kg2 Qa2+ 75. Rf2 Qd5+ 76. Kh2 Qb3 $16) 73... Qd5+ 74. Kh2 Qb3) 70. Kg2 {[%emt 0:01:36]} (70. Kh2 $16 {[%csl Ge7][%cal Rf7h7]} Qh8 71. Rb7) 70... Qb2+ {[%emt 0:00:30]} (70... Qd5+ $11 {remains equal.} 71. Kg1 Qd1+ 72. Kh2 Qc2+ 73. Kh3 Qc8+ 74. Rd7 Qh8) 71. Rf2 {[%emt 0:01:21]} Qb8 {[%emt 0:00:36]} 72. Re6 {[%emt 0:00:47]} Qb7+ {[%emt 0:00:48]} 73. Kh2 {[%emt 0:00:07]} Qc8 {[%emt 0:01:08]} 74. Rff6 {[%emt 0:01:50]} (74. Rfe2 $14) 74... Qc2+ $11 {[%emt 0:00:15]} 75. Kh3 {[%emt 0:01:21]} Qb1 {[%emt 0:00:08] Against Re1.  Weighted Error Value: White=0.05 (flawless) /Black=0.06 (flawless)} 1/2-1/2

[Event "Tirnavia Reti Memorial-GM 2022"]
[Site "Trnava"]
[Date "2022.08.14"]
[Round "5.3"]
[White "Czebe, Attila"]
[Black "Stevik, Patrik"]
[Result "1-0"]
[ECO "B04"]
[WhiteElo "2385"]
[BlackElo "2126"]
[Annotator "RC"]
[PlyCount "75"]
[EventDate "2022.08.10"]
[EventType "tourn"]
[EventCountry "SVK"]
[SourceTitle "playchess.com"]
[Source "ChessBase"]
[SourceQuality "1"]
[TimeControl "40/5400+30:1800+30"]

1. e4 {[%emt 0:00:45]} g6 {[%emt 0:00:06]} 2. d4 {[%emt 0:00:10]} Bg7 {[%emt 0:00:05]} 3. Nf3 {[%emt 0:00:47]} d6 {[%emt 0:00:00]} 4. Bc4 {[%emt 0:00:06]} Nf6 {[%emt 0:01:01]} 5. Qe2 {[%emt 0:06:36]} O-O {[%emt 0:00:53]} 6. e5 {[%emt 0:00:05]} dxe5 {[%emt 0:01:02]} 7. dxe5 {[%emt 0:03:11]} Nd5 {[%emt 0:03:28]} 8. h3 {[%emt 0:00:30]} c6 {[%emt 0:01:20]} 9. O-O {[%emt 0:00:12]} Qc7 {[%emt 0:01:40]} 10. Bb3 {[%emt 0:00:12]} a5 {[%emt 0:02:31]} 11. a3 {[%emt 0:00:20]} e6 {[%emt 0:00:30]} 12. c4 {[%emt 0:03:52]} Ne7 {[%emt 0:00:30]} 13. Nc3 {[%emt 0:00:30]} Nd7 {[%emt 0:00:58]} 14. Bg5 {[%emt 0:01:09]} Nc5 {[%emt 0:04:57]} 15. Bc2 {[%emt 0:00:19]} a4 {[%emt 0:00:30]} 16. Qd2 {[%emt 0:02:04]} b6 {[%emt 0:10:55]} 17. Rad1 {[%emt 0:01:23]} Ba6 {[%emt 0:00:30]} 18. Qf4 {[%emt 0:00:30]} Nf5 {[%emt 0:00:30]} 19. g4 {[%emt 0:02:13]} h6 {[%emt 0:05:13]} 20. gxf5 {[%emt 0:00:13]} hxg5 {[%emt 0:00:15]} 21. Nxg5 {[%emt 0:00:06]} exf5 {[%emt 0:01:19]} 22. Nxa4 {[%emt 0:10:28]} Nxa4 {[%emt 0:12:00]} 23. Bxa4 {[%emt 0:05:43]} Bxe5 {[%emt 0:00:30]} 24. Qh4 {[%emt 0:00:30]} Kg7 {[%emt 0:00:30]} 25. Qh7+ {[%emt 0:00:30]} Kf6 {[%emt 0:00:54]} 26. Qh6 {[%emt 0:00:02]} Rh8 {[%emt 0:10:50]} 27. Nh7+ {[%emt 0:00:46]} Rxh7 {[%emt 0:00:30]} 28. Qxh7 {[%emt 0:00:06]} Bb7 {[%emt 0:00:47]} 29. Rfe1 {[%emt 0:04:40]} b5 {[%emt 0:27:18]} 30. Bb3 {[%emt 0:02:07]} c5 {[%emt 0:02:29]} 31. cxb5 {[%emt 0:00:10]} Bf3 {[%emt 0:02:32]} 32. Bd5 {[%emt 0:01:14]} Bh2+ {[%emt 0:00:30]} 33. Kf1 {[%emt 0:00:04]} Bxd5 {[%emt 0:07:11]} 34. Rxd5 {[%emt 0:00:30]} Qf4 {[%emt 0:00:30]} 35. Kg2 {[%emt 0:00:30]} Rf8 {[%emt 0:00:30]} 36. Rxc5 {[%emt 0:00:30]} Kg5 {[%emt 0:00:30]} 37. h4+ {[%emt 0:00:30]} Kg4 {[%emt 0:00:13]} 38. Rc4 {[%emt 0:00:01]} 1-0

[Event "Tirnavia Reti Memorial-GM 2022"]
[Site "Trnava"]
[Date "2022.08.14"]
[Round "5.4"]
[White "Farkas, Gabor"]
[Black "Finek, Vaclav"]
[Result "0-1"]
[ECO "D90"]
[WhiteElo "2335"]
[BlackElo "2393"]
[Annotator "RC"]
[PlyCount "74"]
[EventDate "2022.08.10"]
[EventType "tourn"]
[EventCountry "SVK"]
[SourceTitle "playchess.com"]
[Source "ChessBase"]
[SourceQuality "1"]
[TimeControl "40/5400+30:1800+30"]

1. c4 {[%emt 0:00:04]} Nf6 {[%emt 0:00:56]} 2. Nc3 {[%emt 0:00:07]} d5 {[%emt 0:00:18]} 3. cxd5 {[%emt 0:00:06]} Nxd5 {[%emt 0:00:05]} 4. Nf3 {[%emt 0:00:07]} g6 {[%emt 0:00:48]} 5. Qb3 {[%emt 0:00:06]} Nb6 {[%emt 0:13:57]} 6. d4 {[%emt 0:00:07]} Bg7 {[%emt 0:01:02]} 7. Bf4 {[%emt 0:00:22]} O-O {[%emt 0:03:24]} 8. Rd1 {[%emt 0:02:52]} Bg4 {[%emt 0:03:31]} 9. e3 {[%emt 0:01:43]} Bxf3 {[%emt 0:06:24]} 10. gxf3 {[%emt 0:00:16]} N8d7 {[%emt 0:02:28]} 11. h4 {[%emt 0:06:20]} Nf6 {[%emt 0:10:33]} 12. Be5 {[%emt 0:01:37]} e6 {[%emt 0:03:59]} 13. Bd3 {[%emt 0:07:36]} Qe7 {[%emt 0:03:18]} 14. Ke2 {[%emt 0:06:00]} c5 {[%emt 0:05:58]} 15. dxc5 {[%emt 0:04:36]} Qxc5 {[%emt 0:00:08]} 16. Bd4 {[%emt 0:02:34]} Qe7 {[%emt 0:02:07]} 17. Qb5 {[%emt 0:05:04]} Nbd7 {[%emt 0:04:34]} 18. f4 {[%emt 0:03:58]} a6 {[%emt 0:01:51]} 19. Qg5 {[%emt 0:00:43]} h6 {[%emt 0:01:38]} 20. Qa5 {[%emt 0:03:27]} b5 {[%emt 0:01:49]} 21. Ne4 {[%emt 0:03:16]} Rfc8 {[%emt 0:05:44]} 22. Nxf6+ {[%emt 0:03:49]} Nxf6 {[%emt 0:00:46]} 23. Rc1 {[%emt 0:03:31]} Rxc1 {[%emt 0:03:48]} 24. Rxc1 {[%emt 0:01:00]} Nd5 {[%emt 0:00:04]} 25. Bxg7 {[%emt 0:00:40]} Kxg7 {[%emt 0:00:16]} 26. h5 {[%emt 0:00:15]} g5 {[%emt 0:07:45]} 27. fxg5 {[%emt 0:01:05]} Qxg5 {[%emt 0:00:59]} 28. Be4 {[%emt 0:01:34]} Qxh5+ {[%emt 0:01:33]} 29. Bf3 {[%emt 0:00:10]} Qe5 {[%emt 0:00:08]} 30. Rg1+ {[%emt 0:00:10]} Kh8 {[%emt 0:02:20]} 31. Bxd5 {[%emt 0:00:12]} Qxb2+ {[%emt 0:04:36]} 32. Kd3 {[%emt 0:01:19]} exd5 {[%emt 0:01:05]} 33. Qb6 {[%emt 0:00:15]} Kh7 {[%emt 0:02:06]} 34. Qb7 {[%emt 0:00:45]} Qa3+ {[%emt 0:00:22]} 35. Ke2 {[%emt 0:00:33]} Qb2+ {[%emt 0:01:08]} 36. Kd3 {[%emt 0:00:06]} Qxf2 {[%emt 0:01:44]} 37. Qxa8 {[%emt 0:01:46]} Qxg1 {[%emt 0:00:05]} 0-1

[Event "Tirnavia Reti Memorial-GM 2022"]
[Site "Trnava"]
[Date "2022.08.14"]
[Round "5.5"]
[White "Pechac, Jergus"]
[Black "Pacher, Milan"]
[Result "1-0"]
[ECO "E92"]
[WhiteElo "2594"]
[BlackElo "2399"]
[Annotator "RC"]
[PlyCount "69"]
[EventDate "2022.08.10"]
[EventType "tourn"]
[EventCountry "SVK"]
[SourceTitle "playchess.com"]
[Source "ChessBase"]
[SourceQuality "1"]
[TimeControl "40/5400+30:1800+30"]

1. c4 {[%emt 0:00:31]} Nf6 {[%emt 0:00:05]} 2. Nf3 {[%emt 0:00:29]} g6 {[%emt 0:00:04]} 3. Nc3 {[%emt 0:00:06]} Bg7 {[%emt 0:00:04]} 4. e4 {[%emt 0:00:43]} d6 {[%emt 0:00:03]} 5. d4 {[%emt 0:00:07]} O-O {[%emt 0:00:05]} 6. Be2 {[%emt 0:00:04]} e5 {[%emt 0:00:06]} 7. d5 {[%emt 0:00:45]} a5 {[%emt 0:00:17]} 8. h3 {[%emt 0:00:17]} Na6 {[%emt 0:00:21]} 9. Bg5 {[%emt 0:00:07]} Qe8 {[%emt 0:01:41]} 10. g4 {[%emt 0:01:26]} Nd7 {[%emt 0:01:28]} 11. Nd2 {[%emt 0:00:22]} Nb6 {[%emt 0:02:26]} 12. a3 {[%emt 0:02:47]} Bd7 {[%emt 0:05:19]} 13. Qc2 {[%emt 0:00:16]} Nc5 {[%emt 0:02:48]} 14. Be3 {[%emt 0:01:21]} Qe7 {[%emt 0:02:00]} 15. O-O-O {[%emt 0:02:20]} c6 {[%emt 0:05:12]} 16. Kb1 {[%emt 0:04:50]} a4 {[%emt 0:03:43]} 17. Ka2 {[%emt 0:02:11]} Rfc8 {[%emt 0:02:55]} 18. h4 {[%emt 0:03:20]} cxd5 {[%emt 0:03:53]} 19. exd5 {[%emt 0:01:22]} f5 {[%emt 0:16:42]} 20. h5 {[%emt 0:02:00]} Qf7 {[%emt 0:00:50]} 21. f3 {[%emt 0:02:58]} Rc7 {[%emt 0:04:40]} 22. hxg6 {[%emt 0:03:53]} hxg6 {[%emt 0:01:46]} 23. Rdg1 {[%emt 0:04:50]} Rac8 {[%emt 0:03:24]} 24. Qd1 {[%emt 0:01:36]} fxg4 {[%emt 0:07:53]} 25. fxg4 {[%emt 0:00:59]} Be8 {[%emt 0:00:30]} 26. Qe1 {[%emt 0:03:59]} e4 {[%emt 0:03:12]} 27. Qh4 {[%emt 0:01:03]} Be5 {[%emt 0:00:05]} 28. Rf1 {[%emt 0:00:56]} Qh7 {[%emt 0:02:27]} 29. Qf2 {[%emt 0:01:58]} Qf7 {[%emt 0:02:58]} 30. Qg2 {[%emt 0:02:42]} Qe7 {[%emt 0:00:04]} 31. g5 {[%emt 0:04:53]} Bd7 {[%emt 0:07:36]} 32. Bxc5 {[%emt 0:00:52]} Rxc5 {[%emt 0:00:06]} 33. Ncxe4 {[%emt 0:00:43]} Bf5 {[%emt 0:01:09]} 34. Rxf5 {[%emt 0:01:49]} gxf5 {[%emt 0:00:05]} 35. Nf6+ {[%emt 0:00:09]} 1-0

[Event "Tirnavia Reti Memorial-GM 2022"]
[Site "Trnava"]
[Date "2022.08.15"]
[Round "6.1"]
[White "Malinovsky, Karel"]
[Black "Pacher, Milan"]
[Result "1/2-1/2"]
[ECO "A00"]
[WhiteElo "2463"]
[BlackElo "2399"]
[Annotator "TA"]
[PlyCount "119"]
[EventDate "2022.08.10"]
[EventType "tourn"]
[EventCountry "SVK"]
[SourceTitle "playchess.com"]
[Source "ChessBase"]
[SourceQuality "1"]
[TimeControl "40/5400+30:1800+30"]

{[%evp 9,119,29,51,29,30,22,30,0,31,31,29,12,77,70,76,34,27,30,20,0,25,4,5,8,51,50,104,46,71,0,18,-15,0,0,0,0,0,0,0,0,0,0,0,0,0,-18,-15,-15,-7,-7,-8,-12,0,0,0,0,0,0,0,0,0,0,8,8,16,0,110,0,0,0,0,0,8,0,0,0,0,0,0,0,0,0,0,0,0,0,0,0,0,0,0,0,0,0,0,0,0,0,0,0,0,0,0,0,0,0,0,0,0,0,0,0]} 1. e4 c6 2. Nc3 d5 3. Nf3 dxe4 4. Nxe4 Nf6 5. Qe2 Na6 6. d3 {B11: Caro-Kann: Two Knights Variation.} Nxe4 7. dxe4 e5 {[#] Against Bf4} 8. Bd2 $146 {White has an edge.} ({Predecessor:} 8. g3 Be7 9. Bg2 O-O 10. O-O Qc7 11. b3 Rd8 12. Bb2 Bg4 13. h3 Bxf3 14. Bxf3 {½-½ (25) Geltz,N (2156)-Bornholdt,J (2132) Willingen 2022}) 8... Qf6 9. O-O-O {aiming for Bg5.} Bg4 10. Bc3 Bb4 {[#]} (10... Nc5 $11 {remains equal.}) 11. Bxb4 $1 $16 Nxb4 12. a3 (12. Qd2 $5 {[%cal Rd2b4]} Qe7 13. a3 $14) 12... Na6 ({Less strong is} 12... Bxf3 13. Qxf3 (13. gxf3 Na6 $11) 13... Qh6+ 14. Kb1 $16) 13. Qe3 {Against Nc5. Threatens to win with Bxa6.} Nc7 14. Be2 O-O 15. h3 Bxf3 16. Bxf3 Ne6 17. Bg4 g6 ({Black should play} 17... Qg5 $14) 18. Kb1 {White is more active.} ({White should try} 18. Rd7 $16) 18... b6 19. g3 (19. Rd6 $16) 19... Rfd8 20. Rde1 Rd4 21. c3 Rd6 22. Rd1 Rad8 23. Rxd6 Rxd6 24. h4 {Against Qg5} h5 25. Rd1 Nc5 26. Be2 a5 27. f3 a4 28. Kc2 Kg7 29. Rxd6 Qxd6 $11 {[%mdl 4096] Endgame KQB-KQN} 30. Bc4 f6 31. Qd2 Qxd2+ 32. Kxd2 {KB-KN} g5 33. Ke3 Kg6 34. Bf1 gxh4 35. gxh4 f5 36. exf5+ Kxf5 37. Bg2 Ke6 (37... Ne6 $11) 38. Bh3+ (38. f4 $16) 38... Kf6 {The position is equal.} 39. Bc8 b5 40. Bh3 Nb7 41. Bd7 Na5 {[#] ...Ke7 is the strong threat.} 42. Kd2 Ke7 {Inhibits Be8.} 43. Bf5 Nc4+ 44. Kc1 $1 Ne3 45. Bg6 Ng2 46. Bxh5 {[%cal Of3f4]} Nxh4 47. Kd2 Nf5 48. Bg6 Nd6 49. Bd3 Ke6 50. Bh7 Kf6 51. Bd3 Nc4+ 52. Bxc4 bxc4 {KP-KP} 53. Ke3 Kf5 54. Ke2 Kf4 55. Kf2 e4 56. fxe4 Kxe4 {( -> ...Kd3)} 57. Ke2 c5 58. Kd2 Kf3 59. Kc2 Ke2 60. Kc1 {Weighted Error Value: White=0.10 (very precise) /Black=0.12 (very precise)} 1/2-1/2

[Event "Tirnavia Reti Memorial-GM 2022"]
[Site "Trnava"]
[Date "2022.08.15"]
[Round "6.1"]
[White "Papp, Levente"]
[Black "Skreko, Igor"]
[Result "1-0"]
[ECO "A00"]
[WhiteElo "2394"]
[BlackElo "2193"]
[Annotator "TA"]
[PlyCount "93"]
[EventDate "2022.08.10"]
[EventType "tourn"]
[EventCountry "SVK"]
[SourceTitle "playchess.com"]
[Source "ChessBase"]
[SourceQuality "1"]
[TimeControl "40/5400+30:1800+30"]

{[%evp 12,93,20,27,46,45,41,43,72,82,77,93,102,95,90,84,84,75,78,79,79,76,90,68,102,109,105,112,116,109,113,120,112,121,137,145,158,164,147,135,136,137,157,147,224,239,233,208,278,270,270,275,268,275,278,271,337,366,351,353,346,339,356,352,341,329,406,414,405,406,390,406,441,373,581,548,616,586,744,744,743,625,672,621]} 1. Nf3 Nf6 2. g3 g6 3. b3 Bg7 4. Bb2 O-O 5. Bg2 c5 6. c4 Nc6 7. O-O e6 {A30: Symmetrical English: Double Fianchetto and Hedgehog.} 8. d4 cxd4 9. Nxd4 Nxd4 {White is slightly better.} 10. Qxd4 Ne8 11. Qd2 {White is much more active. The black rooks are badly placed.} Bxb2 12. Qxb2 {[#]} d6 $146 ({Predecessor:} 12... Rb8 13. Nc3 a6 14. a4 b6 15. Rfd1 f5 16. Qd2 Rf7 17. Qe3 Qc7 18. Qd4 Bb7 19. Bxb7 Rxb7 {½-½ (46) Jaksland,T (2168)-Le Besq,A (2050) Svendborg 2018}) 13. Rd1 Qc7 14. Nc3 Bd7 15. Rac1 Bc6 16. e4 a6 17. h4 Ng7 {[#]} 18. Nd5 $1 {[%mdl 512]} Bxd5 19. cxd5 Qe7 20. e5 exd5 21. exd6 ({Reject} 21. Bxd5 dxe5 22. Qc3 Rad8 $15) 21... Qxd6 22. Rxd5 Qe7 {[#]} 23. Rcd1 $1 Rae8 24. Rd7 Qe2 25. Qxe2 Rxe2 26. a4 b6 27. R7d6 Rb8 (27... Re6 $16 {keeps fighting.} 28. Bf1 a5) 28. Bf1 $18 Re5 29. Bxa6 Ne6 30. Bc4 Nc5 31. Rd8+ Re8 32. Rxe8+ Rxe8 {[%mdl 4096] Endgame KRB-KRN} 33. Rd6 Rb8 34. Rc6 Nd7 35. f4 Rb7 36. Ba6 Ra7 37. Bc8 Nc5 38. Rxb6 Rc7 39. Bg4 Ne4 40. Rb8+ Kg7 41. Rc8 Re7 42. Kg2 h5 (42... Rb7 $142 43. Bd1 Nd6) 43. Bf3 {White is clearly winning.} Nd2 44. Rc3 Nb1 45. Rc2 Re3 46. Rb2 Nc3 47. a5 {Weighted Error Value: White=0.04 (flawless) /Black=0.20 (precise)} 1-0

[Event "Tirnavia Reti Memorial-GM 2022"]
[Site "Trnava"]
[Date "2022.08.15"]
[Round "6.2"]
[White "Finek, Vaclav"]
[Black "Pechac, Jergus"]
[Result "1/2-1/2"]
[ECO "A00"]
[WhiteElo "2393"]
[BlackElo "2594"]
[Annotator "TA"]
[PlyCount "88"]
[EventDate "2022.08.10"]
[EventType "tourn"]
[EventCountry "SVK"]
[SourceTitle "playchess.com"]
[Source "ChessBase"]
[SourceQuality "1"]
[TimeControl "40/5400+30:1800+30"]

{[%evp 23,88,0,0,0,2,0,10,11,14,9,10,9,15,16,25,-11,-8,-6,0,0,-9,-6,-8,-27,-31,-44,0,-16,-24,-39,-20,-19,-10,-35,-35,-37,-34,-68,-35,-89,-35,-19,0,-14,-24,-26,-11,-19,-17,-35,0,0,0,0,0,0,0,0,0,0,0,0,0,0,0,0,0]} 1. d4 d5 2. c4 e6 3. Nf3 Nf6 4. g3 Bb4+ 5. Bd2 Be7 6. Bg2 O-O 7. O-O c6 8. Qc2 Nbd7 9. Bf4 b6 10. cxd5 cxd5 11. Rc1 Bb7 12. Bc7 Qe8 13. Qb3 {E08: Closed Catalan: Main Line: 7 Qc2.} Ne4 14. Na3 Rc8 15. Nb5 $1 Ndc5 16. dxc5 bxc5 17. Bf4 c4 18. Qa4 {Hoping for b3.} Bc5 {[#]} 19. e3 $146 ({Predecessor:} 19. Be3 Bc6 20. Nfd4 Bxd4 21. Bxd4 Bxb5 22. Qxa7 Ra8 23. Qc7 Qb8 24. Qxb8 Rfxb8 25. f3 {½-½ (79) Can,E (2599)-Sargsyan,S (2641) Sharjah 2022}) 19... Bc6 20. Nfd4 Bxd4 {[%mdl 64] [#] Remove Defender} 21. exd4 {Threatens to win with Bxe4.} Bxb5 22. Qxa7 Ra8 23. Qb6 Ra6 24. Qb7 Nd6 (24... g5 $5 {[%cal Rg5f4]} 25. Bxe4 gxf4 $15) 25. Bxd6 Rxd6 26. b3 Ba6 27. Qb4 Qb8 28. Qc3 cxb3 {[#] And now ...b2 would win.} 29. axb3 Rb6 30. Qc2 h6 (30... g6 $5 {[%cal Rf8c8]}) 31. h4 (31. Bf3 $15) 31... Qb7 (31... Rc8 $17 32. Qa2 Bd3 33. Rxc8+ Qxc8) 32. Ra3 $15 Qb8 33. Rca1 Rc8 34. Qd2 Qd6 35. Bf3 Bb7 36. Bd1 e5 37. dxe5 {The position is equal.} Qxe5 38. Ra4 {[%cal Ba3a4,Ba4d4,Bd4d5][%mdl 32] Against d4} Re8 {[%cal Od5d4,Bc8e8,Be8e1,Be1a1][%mdl 32] Strongly threatening ...d4!} 39. Rd4 Qe1+ 40. Qxe1 Rxe1+ 41. Kg2 Rxb3 42. Bxb3 Rxa1 43. Bxd5 Bxd5+ 44. Rxd5 g6 {Weighted Error Value: White=0.07 (flawless) /Black=0.09 (flawless)} 1/2-1/2

[Event "Tirnavia Reti Memorial-GM 2022"]
[Site "Trnava"]
[Date "2022.08.15"]
[Round "6.2"]
[White "Petran, Peter"]
[Black "Konyves, Almos"]
[Result "0-1"]
[ECO "A00"]
[WhiteElo "2234"]
[BlackElo "2229"]
[Annotator "TA"]
[PlyCount "60"]
[EventDate "2022.08.10"]
[EventType "tourn"]
[EventCountry "SVK"]
[SourceTitle "playchess.com"]
[Source "ChessBase"]
[SourceQuality "1"]
[TimeControl "40/5400+30:1800+30"]

{[%evp 22,60,0,0,18,0,64,-37,-23,-67,-57,-68,-63,-76,-72,-79,-72,-82,-61,-75,-54,-45,-37,-70,-80,-91,-89,-102,-121,-108,-111,-154,-150,-158,-149,-1006,-964,-1268,-1160,-1016,-936]} 1. g3 e5 2. c4 Nf6 3. Bg2 d5 4. cxd5 Nxd5 5. Nc3 Nb6 6. a3 Be7 7. d3 O-O 8. Be3 Nc6 9. Nf3 Be6 10. O-O Nd5 11. Bd2 a5 12. Rc1 h6 {[#] A29: English Opening: Four Knights Variation with 4 g3.} 13. Na4 $146 {[%cal Oc1c6]} ({Predecessor:} 13. Ne4 a4 14. Nc5 Bxc5 15. Rxc5 Qd7 16. Be3 Nxe3 17. fxe3 e4 18. dxe4 Qxd1 19. Rxd1 Ra5 20. Rxa5 Nxa5 {0-1 (74) Taj Dini,H (1206)-Alavi,M (1549) Chess.com INT 2021}) 13... Re8 {[#]} (13... Qd7 $11) 14. e4 ({Better is} 14. Rxc6 $1 $14 bxc6 15. Nxe5) 14... Nb6 $15 {Black is slightly better.} 15. Be3 Nxa4 16. Qxa4 Qxd3 {...Bb3 is the strong threat.} 17. Rc3 {Inhibits Bb3.} Qd7 {Black is more active.} 18. Rd1 Qc8 19. Rdc1 Bd6 20. Nh4 Nd4 21. Bxd4 Bd7 22. Qd1 {Hoping for Bb6.} exd4 23. Rd3 ({But not} 23. Qxd4 $2 Be5 24. Qd3 Bxc3 25. Qxc3 c6 $19) 23... c5 24. Nf5 Bxf5 25. exf5 Qxf5 26. a4 Re7 27. Rb3 Rae8 {[%cal Oc5c4] And now ...c4! would win.} 28. Rxb7 $2 {[%mdl 8192]} (28. Bf1 $17) 28... Re2 $19 {Black is clearly winning.} 29. f4 {[#]} Rxg2+ $1 {[%mdl 512]} 30. Kxg2 Qd5+ {Weighted Error Value: White=0.83/Black=0.18 (very precise)} 0-1